[Event "FIDE WYCC Girls U14 2023"]
[Site "Montesilvano"]
[Date "2023.11.14"]
[Round "2.20"]
[White "Skramstad, Oda Kofoed"]
[Black "Orazalina, Nursulu"]
[Result "1-0"]
[ECO "E98"]
[WhiteElo "1801"]
[BlackElo "1428"]
[Annotator "NA"]
[PlyCount "141"]
[EventDate "2023.11.13"]
[EventType "swiss"]
[EventCountry "ITA"]
[SourceTitle "playchess.com"]
[Source "ChessBase"]
[SourceQuality "1"]
[TimeControl "40/5400+30:1800+30"]

1. d4 {[%emt 0:00:47]} Nf6 {[%emt 0:00:05]} 2. c4 {[%emt 0:00:48]} g6 {[%emt 0:00:05]} 3. Nc3 {[%emt 0:00:41]} Bg7 {[%emt 0:00:05]} 4. e4 {[%emt 0:01:06]} d6 {[%emt 0:00:04]} 5. Nf3 {[%emt 0:01:30]} O-O {[%emt 0:00:07]} 6. Be2 {[%emt 0:01:12]} e5 {[%emt 0:00:06]} 7. O-O {[%emt 0:01:20]} Nc6 {[%emt 0:00:09]} 8. d5 {[%emt 0:01:25]} Ne7 {[%emt 0:00:07]} 9. Ne1 {[%emt 0:01:28]} Nd7 {[%emt 0:00:08]} 10. Be3 {[%emt 0:01:31]} f5 {[%emt 0:00:04]} 11. f3 {[%emt 0:01:09]} f4 {[%emt 0:00:05]} 12. Bf2 {[%emt 0:00:05]} g5 {[%emt 0:00:04]} 13. Rc1 {[%emt 0:01:09]} Ng6 {[%emt 0:00:18]} 14. c5 {[%emt 0:02:07]} a6 {[%emt 0:02:27]} 15. cxd6 {[%emt 0:00:41]} cxd6 {[%emt 0:00:11]} 16. Qb3 {[%emt 0:01:43]} Rf7 {[%emt 0:19:59]} 17. Na4 {[%emt 0:03:00]} b5 {[%emt 0:03:52]} 18. Nc3 {[%emt 0:00:20]} Rb8 {[%emt 0:09:51]} 19. Nd3 {[%emt 0:06:19]} h5 {[%emt 0:06:08]} 20. Nb4 {[%emt 0:02:41]} Qf8 {[%emt 0:00:08]} 21. Nc6 {[%emt 0:00:46]} Ra8 {[%emt 0:01:58]} 22. a4 {[%emt 0:03:09]} bxa4 {[%emt 0:01:25]} 23. Nxa4 {[%emt 0:00:31]} Bh6 {[%emt 0:05:49]} 24. Rc2 {[%emt 0:07:56]} a5 {[%emt 0:19:33]} 25. Rfc1 {[%emt 0:04:17]} Ne7 {[%emt 0:11:46]} 26. Na7 {[%emt 0:04:21]} g4 {[%emt 0:04:58]} 27. Nxc8 {[%emt 0:09:58]} Nxc8 {[%emt 0:02:10]} 28. Qb7 {[%emt 0:02:51]} Na7 {[%emt 0:09:10]} 29. Bxa7 {[%emt 0:01:32]} Nc5 {[%emt 0:00:06]} 30. Qc6 {[%emt 0:03:53]} Rc8 {[%emt 0:01:52]} 31. Qb6 {[%emt 0:02:19]} Rb7 {[%emt 0:00:51]} 32. Qxb7 {[%emt 0:02:02]} Nxb7 {[%emt 0:00:09]} 33. Rxc8 {[%emt 0:00:06]} Nd8 {[%emt 0:00:20]} 34. Bb6 {[%emt 0:00:43]} Bg5 {[%emt 0:00:15]} 35. Rb8 {[%emt 0:00:42]} Qe8 {[%emt 0:01:50]} 36. b3 {[%emt 0:01:00]} gxf3 {[%emt 0:01:33]} 37. Bxf3 {[%emt 0:00:18]} Qb5 {[%emt 0:00:19]} 38. Rc3 {[%emt 0:01:25]} Qb4 {[%emt 0:00:46]} 39. Rbc8 {[%emt 0:00:44]} Kg7 {[%emt 0:00:36]} 40. Kf1 {[%emt 0:00:00]} Nf7 {[%emt 0:00:00]} 41. R8c7 {[%emt 0:03:48]} Kg6 {[%emt 0:06:02]} 42. R7c6 {[%emt 0:09:59]} Bh4 {[%emt 0:04:41]} 43. g3 {[%emt 0:11:09]} fxg3 {[%emt 0:00:44]} 44. hxg3 {[%emt 0:00:17]} Bxg3 {[%emt 0:00:29]} 45. R6c4 {[%emt 0:00:27]} Qa3 {[%emt 0:00:53]} 46. Bxh5+ {[%emt 0:00:50]} Kxh5 {[%emt 0:00:09]} 47. Rxg3 {[%emt 0:00:09]} Qa1+ {[%emt 0:03:03]} 48. Ke2 {[%emt 0:02:58]} Qa2+ {[%emt 0:01:39]} 49. Kd1 {[%emt 0:02:25]} Qb1+ {[%emt 0:00:49]} 50. Kd2 {[%emt 0:02:12]} Ng5 {[%emt 0:01:07]} 51. Re3 {[%emt 0:01:50]} Kg4 {[%emt 0:01:40]} 52. Rcc3 {[%emt 0:07:20]} Kf4 {[%emt 0:03:09]} 53. Rc1 {[%emt 0:03:41]} Qa2+ {[%emt 0:03:27]} 54. Rc2 {[%emt 0:00:51]} Qa1 {[%emt 0:01:48]} 55. Nc3 {[%emt 0:08:05]} Nf3+ {[%emt 0:00:58]} 56. Ke2 {[%emt 0:00:43]} Nd4+ {[%emt 0:04:30]} 57. Bxd4 {[%emt 0:00:19]} exd4 {[%emt 0:00:04]} 58. Rf3+ {[%emt 0:00:06]} Kg4 59. Nd1 {[%emt 0:00:00]} a4 {[%emt 0:02:02]} 60. Nf2+ {[%emt 0:00:44]} Kg5 {[%emt 0:00:09]} 61. bxa4 {[%emt 0:01:11]} Qxa4 {[%emt 0:00:11]} 62. Rd2 {[%emt 0:00:29]} Qc4+ {[%emt 0:00:34]} 63. Rfd3 {[%emt 0:00:40]} Kf4 {[%emt 0:01:03]} 64. Kf1 {[%emt 0:00:39]} Qa6 {[%emt 0:02:28]} 65. Kg2 {[%emt 0:00:14]} Qc8 {[%emt 0:00:48]} 66. Rf3+ {[%emt 0:00:26]} Kg5 {[%emt 0:00:25]} 67. Rxd4 {[%emt 0:01:04]} Qc1 {[%emt 0:00:51]} 68. Rdd3 {[%emt 0:00:34]} Kg6 {[%emt 0:00:27]} 69. Rf5 {[%emt 0:00:37]} Kh6 {[%emt 0:00:38]} 70. Rh3+ {[%emt 0:00:17]} Kg6 {[%emt 0:00:14]} 71. Rg3+ {[%emt 0:00:04]} 1-0

[Event "FIDE WYCC Girls U14 2023"]
[Site "Montesilvano"]
[Date "2023.11.14"]
[Round "2.21"]
[White "Sezdbekova, Aizhan"]
[Black "Li Chen, Helena Joana"]
[Result "1-0"]
[ECO "B22"]
[WhiteElo "1594"]
[BlackElo "1799"]
[Annotator "NA"]
[PlyCount "103"]
[EventDate "2023.11.13"]
[EventType "swiss"]
[EventCountry "ITA"]
[SourceTitle "playchess.com"]
[Source "ChessBase"]
[SourceQuality "1"]
[TimeControl "40/5400+30:1800+30"]

1. e4 {[%emt 0:00:03]} c5 {[%emt 0:00:03]} 2. c3 {[%emt 0:00:08]} Nf6 {[%emt 0:00:11]} 3. e5 {[%emt 0:00:41]} Nd5 {[%emt 0:00:07]} 4. d4 {[%emt 0:00:03]} cxd4 {[%emt 0:00:09]} 5. Qxd4 {[%emt 0:00:07]} e6 {[%emt 0:00:39]} 6. Nf3 {[%emt 0:00:16]} Nc6 {[%emt 0:00:18]} 7. Qe4 {[%emt 0:00:20]} f5 {[%emt 0:00:58]} 8. exf6 {[%emt 0:10:12]} Nxf6 {[%emt 0:00:29]} 9. Qc2 {[%emt 0:11:29]} Be7 {[%emt 0:07:28]} 10. Bd3 {[%emt 0:03:49]} d5 {[%emt 0:03:04]} 11. Ng5 {[%emt 0:08:56]} e5 {[%emt 0:09:36]} 12. Bxh7 {[%emt 0:10:56]} Nxh7 {[%emt 0:06:04]} 13. Qg6+ {[%emt 0:02:06]} Kd7 {[%emt 0:00:07]} 14. Nxh7 {[%emt 0:01:10]} Qg8 {[%emt 0:04:34]} 15. Ng5 {[%emt 0:01:20]} Rh6 {[%emt 0:00:18]} 16. Qc2 {[%emt 0:02:26]} e4 {[%emt 0:08:00]} 17. Bf4 {[%emt 0:13:48]} Bxg5 {[%emt 0:11:22]} 18. Bxg5 {[%emt 0:01:15]} Rg6 {[%emt 0:00:07]} 19. h4 {[%emt 0:04:56]} Ne5 {[%emt 0:02:09]} 20. O-O {[%emt 0:02:44]} Ke8 {[%emt 0:11:07]} 21. Nd2 {[%emt 0:04:24]} Qe6 {[%emt 0:03:10]} 22. Rae1 {[%emt 0:04:54]} Nd3 {[%emt 0:06:10]} 23. Re3 {[%emt 0:01:22]} b5 {[%emt 0:01:41]} 24. Nb3 {[%emt 0:01:23]} Kf7 {[%emt 0:04:07]} 25. Nd4 {[%emt 0:01:26]} Qd6 {[%emt 0:02:08]} 26. f3 {[%emt 0:02:38]} Kg8 {[%emt 0:02:28]} 27. fxe4 {[%emt 0:00:28]} dxe4 {[%emt 0:00:43]} 28. Rxe4 {[%emt 0:00:49]} Bb7 {[%emt 0:00:08]} 29. Qxd3 {[%emt 0:00:25]} Bxe4 {[%emt 0:00:17]} 30. Qxe4 {[%emt 0:00:02]} Rf8 {[%emt 0:02:45]} 31. Rxf8+ {[%emt 0:03:39]} Kxf8 {[%emt 0:00:24]} 32. Qf5+ {[%emt 0:00:41]} Kg8 {[%emt 0:00:33]} 33. h5 {[%emt 0:00:10]} Rxg5 {[%emt 0:02:10]} 34. Qxg5 {[%emt 0:00:04]} b4 {[%emt 0:00:33]} 35. Qf5 {[%emt 0:00:52]} bxc3 {[%emt 0:00:18]} 36. bxc3 {[%emt 0:00:04]} Qa3 {[%emt 0:01:08]} 37. Qe6+ {[%emt 0:00:25]} Kh7 {[%emt 0:00:44]} 38. Qg6+ {[%emt 0:00:05]} Kh8 {[%emt 0:00:35]} 39. Qc2 {[%emt 0:00:16]} Qc5 {[%emt 0:00:13]} 40. Qd3 {[%emt 0:00:00]} a5 {[%emt 0:00:00]} 41. Kf1 {[%emt 0:01:06]} a4 {[%emt 0:01:57]} 42. Kf2 {[%emt 0:00:17]} Kg8 {[%emt 0:00:36]} 43. h6 {[%emt 0:00:48]} gxh6 {[%emt 0:00:50]} 44. Qg6+ {[%emt 0:00:55]} Kh8 {[%emt 0:00:05]} 45. Qxh6+ {[%emt 0:00:04]} Kg8 {[%emt 0:00:06]} 46. Qe6+ {[%emt 0:00:24]} Kh8 {[%emt 0:00:13]} 47. Qe3 {[%emt 0:00:53]} a3 {[%emt 0:00:24]} 48. g4 {[%emt 0:00:27]} Qb6 {[%emt 0:00:42]} 49. Nf5 {[%emt 0:00:35]} Qb2+ {[%emt 0:00:10]} 50. Kg3 {[%emt 0:00:05]} Qxa2 {[%emt 0:01:48]} 51. Qh6+ {[%emt 0:00:06]} Kg8 {[%emt 0:00:10]} 52. Qg7# {[%emt 0:00:05]} 1-0

[Event "FIDE WYCC Girls U14 2023"]
[Site "Montesilvano"]
[Date "2023.11.14"]
[Round "2.22"]
[White "Montano Vicente, Guadalupe"]
[Black "Sodgerelt Naranbold"]
[Result "1-0"]
[ECO "D20"]
[WhiteElo "1794"]
[BlackElo "1419"]
[Annotator "NA"]
[PlyCount "52"]
[EventDate "2023.11.13"]
[EventType "swiss"]
[EventCountry "ITA"]
[SourceTitle "playchess.com"]
[Source "ChessBase"]
[SourceQuality "1"]
[TimeControl "40/5400+30:1800+30"]

1. d4 {[%emt 0:00:03]} d5 {[%emt 0:01:53]} 2. c4 {[%emt 0:00:29]} dxc4 {[%emt 0:01:32]} 3. e4 {[%emt 0:01:09]} Nf6 {[%emt 0:01:29]} 4. e5 {[%emt 0:01:36]} Nd5 {[%emt 0:01:31]} 5. Bxc4 {[%emt 0:00:37]} e6 {[%emt 0:03:38]} 6. Nf3 {[%emt 0:02:13]} a6 {[%emt 0:03:36]} 7. O-O {[%emt 0:03:12]} b5 {[%emt 0:01:16]} 8. Bd3 {[%emt 0:04:24]} Bb7 {[%emt 0:01:02]} 9. Nbd2 {[%emt 0:02:09]} Nd7 {[%emt 0:02:29]} 10. Ne4 {[%emt 0:04:25]} c5 {[%emt 0:02:19]} 11. Bg5 {[%emt 0:16:11]} Qb8 {[%emt 0:02:48]} 12. dxc5 {[%emt 0:00:32]} Nxe5 {[%emt 0:16:14]} 13. Re1 {[%emt 0:08:17]} Nxd3 {[%emt 0:04:04]} 14. Qxd3 {[%emt 0:00:21]} h6 {[%emt 0:07:34]} 15. Bh4 {[%emt 0:02:05]} Nf4 {[%emt 0:00:22]} 16. Qe3 {[%emt 0:06:25]} Nd5 {[%emt 0:17:31]} 17. Qd4 {[%emt 0:02:54]} Bc6 {[%emt 0:20:21]} 18. Ne5 {[%emt 0:09:27]} Qb7 {[%emt 0:00:21]} 19. Rac1 {[%emt 0:04:19]} Rc8 {[%emt 0:04:29]} 20. b4 {[%emt 0:01:11]} a5 {[%emt 0:04:29]} 21. a3 {[%emt 0:01:59]} Qa7 {[%emt 0:00:33]} 22. Nxc6 {[%emt 0:03:54]} Rxc6 {[%emt 0:00:01]} 23. Nc3 {[%emt 0:00:07]} Nf6 {[%emt 0:01:54]} 24. Nxb5 {[%emt 0:01:03]} Qb8 {[%emt 0:00:31]} 25. Rcd1 {[%emt 0:02:19]} Be7 {[%emt 0:00:29]} 26. Bxf6 {[%emt 0:00:15]} Qxb5 {[%emt 0:00:00]} 1-0

[Event "FIDE WYCC Girls U14 2023"]
[Site "Montesilvano"]
[Date "2023.11.14"]
[Round "2.23"]
[White "Poetscher, Katharina"]
[Black "Stankovic, Andrea"]
[Result "0-1"]
[ECO "C13"]
[WhiteElo "1345"]
[BlackElo "1768"]
[Annotator "NA"]
[PlyCount "24"]
[EventDate "2023.11.13"]
[EventType "swiss"]
[EventCountry "ITA"]
[SourceTitle "playchess.com"]
[Source "ChessBase"]
[SourceQuality "1"]
[TimeControl "40/5400+30:1800+30"]

1. e4 {[%emt 0:00:02]} e6 {[%emt 0:00:04]} 2. d4 {[%emt 0:00:03]} d5 {[%emt 0:00:05]} 3. Nc3 {[%emt 0:00:05]} Nf6 {[%emt 0:00:09]} 4. Bg5 {[%emt 0:00:04]} Be7 {[%emt 0:03:44]} 5. e5 {[%emt 0:00:06]} Nfd7 {[%emt 0:00:52]} 6. h4 {[%emt 0:00:07]} a6 {[%emt 0:10:37]} 7. Qh5 {[%emt 0:15:26]} c5 {[%emt 0:01:35]} 8. f4 {[%emt 0:01:56]} cxd4 {[%emt 0:02:39]} 9. Nce2 {[%emt 0:00:30]} Qa5+ {[%emt 0:02:20]} 10. Kf2 {[%emt 0:03:36]} Bc5 {[%emt 0:03:35]} 11. Kg3 {[%emt 0:03:48]} g6 {[%emt 0:03:55]} 12. Qh6 {[%emt 0:01:09]} Bf8 {[%emt 0:00:17]} 0-1

[Event "FIDE WYCC Girls U14 2023"]
[Site "Montesilvano"]
[Date "2023.11.14"]
[Round "2.24"]
[White "Romany, Joy"]
[Black "Kairbekova, Albina"]
[Result "1-0"]
[ECO "E06"]
[WhiteElo "1764"]
[BlackElo "1111"]
[Annotator "NA"]
[PlyCount "109"]
[EventDate "2023.11.13"]
[EventType "swiss"]
[EventCountry "ITA"]
[SourceTitle "playchess.com"]
[Source "ChessBase"]
[SourceQuality "1"]
[TimeControl "40/5400+30:1800+30"]

1. d4 {[%emt 0:00:09]} d5 {[%emt 0:00:08]} 2. c4 {[%emt 0:00:06]} e6 {[%emt 0:00:06]} 3. Nf3 {[%emt 0:00:05]} Nf6 {[%emt 0:00:09]} 4. g3 {[%emt 0:00:03]} Be7 {[%emt 0:00:08]} 5. Bg2 {[%emt 0:00:05]} O-O {[%emt 0:00:04]} 6. O-O {[%emt 0:00:09]} Nc6 {[%emt 0:01:19]} 7. b3 {[%emt 0:03:30]} b6 {[%emt 0:00:58]} 8. cxd5 {[%emt 0:01:29]} exd5 {[%emt 0:00:13]} 9. Nc3 {[%emt 0:01:53]} Bb7 {[%emt 0:00:44]} 10. Bf4 {[%emt 0:02:52]} Bd6 {[%emt 0:00:19]} 11. Ne5 {[%emt 0:06:02]} Bb4 {[%emt 0:01:00]} 12. Rc1 {[%emt 0:03:58]} Ba3 {[%emt 0:00:34]} 13. Rb1 {[%emt 0:02:43]} Bb4 {[%emt 0:00:26]} 14. Rc1 {[%emt 0:02:30]} Ba3 {[%emt 0:00:19]} 15. Rc2 {[%emt 0:04:49]} Be7 {[%emt 0:01:36]} 16. Nxd5 {[%emt 0:11:38]} Nxd5 {[%emt 0:00:51]} 17. Nxc6 {[%emt 0:00:10]} Bxc6 {[%emt 0:00:28]} 18. Rxc6 {[%emt 0:00:07]} Nxf4 {[%emt 0:00:38]} 19. gxf4 {[%emt 0:00:06]} Qd7 {[%emt 0:00:27]} 20. Qc2 {[%emt 0:03:32]} Qxd4 {[%emt 0:00:45]} 21. Rc4 {[%emt 0:00:44]} Qd7 {[%emt 0:01:52]} 22. Rxc7 {[%emt 0:01:40]} Qe6 {[%emt 0:00:48]} 23. f5 {[%emt 0:01:40]} Qe5 {[%emt 0:00:56]} 24. Rxe7 {[%emt 0:18:11]} Qxe7 {[%emt 0:00:21]} 25. Bxa8 {[%emt 0:00:05]} Rxa8 {[%emt 0:00:11]} 26. Rc1 {[%emt 0:00:46]} Re8 {[%emt 0:00:18]} 27. e3 {[%emt 0:01:10]} Qg5+ {[%emt 0:00:32]} 28. Kh1 {[%emt 0:06:32]} Qh5 {[%emt 0:00:09]} 29. Qe4 {[%emt 0:06:57]} Rd8 {[%emt 0:00:27]} 30. Rg1 {[%emt 0:02:05]} h6 {[%emt 0:00:46]} 31. Qg2 {[%emt 0:00:30]} Kf8 {[%emt 0:03:08]} 32. Qxg7+ {[%emt 0:00:27]} Ke7 {[%emt 0:01:14]} 33. Qe5+ {[%emt 0:02:54]} Kf8 {[%emt 0:00:23]} 34. Qg7+ {[%emt 0:00:29]} Ke7 {[%emt 0:00:18]} 35. Qg4 {[%emt 0:01:03]} Qxg4 {[%emt 0:00:19]} 36. Rxg4 {[%emt 0:00:01]} Rd2 {[%emt 0:00:16]} 37. Ra4 {[%emt 0:00:19]} a5 {[%emt 0:00:15]} 38. Kg2 {[%emt 0:01:03]} Kf6 {[%emt 0:00:14]} 39. b4 {[%emt 0:01:19]} axb4 {[%emt 0:00:22]} 40. Rxb4 {[%emt 0:00:00]} Rxa2 {[%emt 0:00:00]} 41. Rxb6+ {[%emt 0:00:48]} Kg5 {[%emt 0:02:26]} 42. Kg3 {[%emt 0:04:57]} h5 {[%emt 0:00:29]} 43. h4+ {[%emt 0:00:41]} Kxf5 {[%emt 0:00:50]} 44. Rh6 {[%emt 0:00:09]} Ra1 {[%emt 0:00:41]} 45. Rxh5+ {[%emt 0:00:25]} Ke4 {[%emt 0:00:11]} 46. Kg2 {[%emt 0:00:25]} Ra8 {[%emt 0:00:38]} 47. Rg5 {[%emt 0:00:37]} f6 {[%emt 0:00:22]} 48. Rg4+ {[%emt 0:01:14]} Ke5 {[%emt 0:00:29]} 49. Kg3 {[%emt 0:02:25]} Rh8 {[%emt 0:00:51]} 50. Rg7 {[%emt 0:02:37]} f5 {[%emt 0:00:41]} 51. Rg5 {[%emt 0:01:41]} Kf6 {[%emt 0:00:16]} 52. f3 {[%emt 0:01:25]} Re8 {[%emt 0:00:19]} 53. Kf4 {[%emt 0:00:26]} Rh8 {[%emt 0:00:33]} 54. Rxf5+ {[%emt 0:00:12]} Ke6 {[%emt 0:00:05]} 55. h5 {[%emt 0:00:26]} 1-0

[Event "FIDE WYCC Girls U14 2023"]
[Site "Montesilvano"]
[Date "2023.11.14"]
[Round "2.25"]
[White "Cutiyog, Jirah Floravie"]
[Black "Gaszka, Zuzanna"]
[Result "1-0"]
[ECO "B12"]
[WhiteElo "1305"]
[BlackElo "1758"]
[Annotator "NA"]
[PlyCount "84"]
[EventDate "2023.11.13"]
[EventType "swiss"]
[EventCountry "ITA"]
[SourceTitle "playchess.com"]
[Source "ChessBase"]
[SourceQuality "1"]
[TimeControl "40/5400+30:1800+30"]

1. e4 {[%emt 0:00:04]} c6 {[%emt 0:00:04]} 2. d4 {[%emt 0:00:21]} d5 {[%emt 0:00:05]} 3. e5 {[%emt 0:00:03]} c5 {[%emt 0:00:09]} 4. dxc5 {[%emt 0:01:12]} e6 {[%emt 0:00:14]} 5. b4 {[%emt 0:00:19]} Nc6 {[%emt 0:05:41]} 6. Bb5 {[%emt 0:01:25]} Nge7 {[%emt 0:01:26]} 7. Nf3 {[%emt 0:02:12]} Bd7 {[%emt 0:02:27]} 8. Bxc6 {[%emt 0:01:16]} Nxc6 {[%emt 0:00:42]} 9. c3 {[%emt 0:02:57]} a5 {[%emt 0:05:14]} 10. Bd2 {[%emt 0:03:58]} Qc7 {[%emt 0:16:34]} 11. Qe2 {[%emt 0:03:38]} g6 {[%emt 0:12:24]} 12. O-O {[%emt 0:01:44]} Bg7 {[%emt 0:05:43]} 13. Re1 {[%emt 0:01:37]} axb4 {[%emt 0:02:24]} 14. cxb4 {[%emt 0:00:28]} O-O {[%emt 0:01:20]} 15. Bc3 {[%emt 0:04:41]} Ra4 {[%emt 0:14:46]} 16. a3 {[%emt 0:01:41]} Rfa8 {[%emt 0:02:55]} 17. Qb2 {[%emt 0:04:00]} Na7 {[%emt 0:18:24]} 18. Qb3 {[%emt 0:04:00]} Bb5 {[%emt 0:02:50]} 19. Bd4 {[%emt 0:02:58]} Nc6 {[%emt 0:00:58]} 20. Nc3 {[%emt 0:06:44]} Nxd4 {[%emt 0:01:42]} 21. Nxd4 {[%emt 0:00:12]} Bc4 {[%emt 0:00:12]} 22. Qb2 {[%emt 0:01:54]} R4a6 {[%emt 0:01:04]} 23. Ncb5 {[%emt 0:02:40]} Qe7 {[%emt 0:01:59]} 24. Nd6 {[%emt 0:00:27]} Qg5 {[%emt 0:01:19]} 25. N4b5 {[%emt 0:13:14]} Rc6 {[%emt 0:00:42]} 26. Nxc4 {[%emt 0:01:08]} dxc4 {[%emt 0:00:08]} 27. Qd4 {[%emt 0:00:37]} Rd8 {[%emt 0:00:33]} 28. Nd6 {[%emt 0:00:41]} b6 {[%emt 0:01:01]} 29. h4 {[%emt 0:01:01]} Qe7 {[%emt 0:00:49]} 30. Qxc4 {[%emt 0:00:11]} bxc5 {[%emt 0:00:42]} 31. bxc5 {[%emt 0:00:12]} Qc7 {[%emt 0:00:09]} 32. Rac1 {[%emt 0:00:11]} Bf8 {[%emt 0:00:19]} 33. Red1 {[%emt 0:00:25]} Ra8 {[%emt 0:00:18]} 34. Rd3 {[%emt 0:01:26]} Ra5 {[%emt 0:00:19]} 35. Qf4 {[%emt 0:03:46]} Raxc5 {[%emt 0:00:35]} 36. Rxc5 {[%emt 0:00:56]} Rxc5 {[%emt 0:00:06]} 37. Rf3 {[%emt 0:00:11]} Bxd6 {[%emt 0:01:21]} 38. exd6 {[%emt 0:00:24]} Qb7 {[%emt 0:01:09]} 39. Qf6 {[%emt 0:01:27]} Rd5 {[%emt 0:00:25]} 40. Qe7 {[%emt 0:00:00]} Qc8 {[%emt 0:00:00]} 41. Rxf7 {[%emt 0:01:23]} Qc1+ {[%emt 0:01:29]} 42. Kh2 {[%emt 0:00:06]} Qc5 1-0

[Event "FIDE WYCC Girls U14 2023"]
[Site "Montesilvano"]
[Date "2023.11.14"]
[Round "2.26"]
[White "Natoli, Alessia"]
[Black "Mongoljin, Davaadorj"]
[Result "1-0"]
[ECO "C00"]
[WhiteElo "1756"]
[BlackElo "1077"]
[Annotator "NA"]
[PlyCount "115"]
[EventDate "2023.11.13"]
[EventType "swiss"]
[EventCountry "ITA"]
[SourceTitle "playchess.com"]
[Source "ChessBase"]
[SourceQuality "1"]
[TimeControl "40/5400+30:1800+30"]

1. e4 {[%emt 0:00:03]} e6 {[%emt 0:00:11]} 2. d4 {[%emt 0:01:00]} d5 {[%emt 0:00:09]} 3. Bd3 {[%emt 0:01:43]} dxe4 {[%emt 0:01:44]} 4. Bxe4 {[%emt 0:00:07]} Nf6 {[%emt 0:00:17]} 5. Bf3 {[%emt 0:01:23]} c5 {[%emt 0:01:25]} 6. Ne2 {[%emt 0:03:14]} Qb6 {[%emt 0:04:50]} 7. O-O {[%emt 0:02:39]} Nc6 {[%emt 0:03:56]} 8. c3 {[%emt 0:09:28]} Bd6 {[%emt 0:09:27]} 9. dxc5 {[%emt 0:05:05]} Bxc5 {[%emt 0:00:38]} 10. b4 {[%emt 0:08:14]} Be7 {[%emt 0:00:50]} 11. Be3 {[%emt 0:01:28]} Qd8 {[%emt 0:04:39]} 12. Bxc6+ {[%emt 0:04:07]} bxc6 {[%emt 0:00:12]} 13. Qxd8+ {[%emt 0:02:21]} Bxd8 {[%emt 0:00:35]} 14. Nd2 {[%emt 0:04:59]} Bb6 {[%emt 0:02:59]} 15. Nc4 {[%emt 0:08:09]} Ba6 {[%emt 0:04:55]} 16. Nxb6 {[%emt 0:00:49]} axb6 {[%emt 0:00:21]} 17. Rfe1 {[%emt 0:01:20]} Bxe2 {[%emt 0:01:17]} 18. Rxe2 {[%emt 0:00:09]} Nd5 {[%emt 0:03:25]} 19. Bd4 {[%emt 0:02:19]} O-O {[%emt 0:02:26]} 20. a4 {[%emt 0:01:54]} Ra6 {[%emt 0:02:51]} 21. Rb2 {[%emt 0:08:34]} Rfa8 {[%emt 0:05:20]} 22. a5 {[%emt 0:04:23]} f6 {[%emt 0:14:40]} 23. c4 {[%emt 0:03:46]} Nc7 {[%emt 0:05:14]} 24. Rba2 {[%emt 0:02:32]} bxa5 {[%emt 0:01:20]} 25. Rxa5 {[%emt 0:01:53]} Rxa5 {[%emt 0:01:45]} 26. bxa5 {[%emt 0:01:15]} Na6 {[%emt 0:01:39]} 27. Bb6 {[%emt 0:00:53]} Kf7 {[%emt 0:01:40]} 28. Rd1 {[%emt 0:00:36]} Ke7 {[%emt 0:00:40]} 29. f4 {[%emt 0:01:32]} h5 {[%emt 0:04:34]} 30. Kf2 {[%emt 0:01:29]} Rb8 {[%emt 0:01:05]} 31. Ke3 {[%emt 0:01:15]} g6 {[%emt 0:00:40]} 32. h3 {[%emt 0:01:35]} Rh8 {[%emt 0:02:15]} 33. Rb1 {[%emt 0:01:38]} Rb8 {[%emt 0:02:02]} 34. Kd4 {[%emt 0:02:36]} Kd7 {[%emt 0:04:25]} 35. Ke3 {[%emt 0:01:47]} c5 {[%emt 0:02:53]} 36. g4 {[%emt 0:03:21]} h4 {[%emt 0:03:38]} 37. g5 {[%emt 0:00:53]} f5 {[%emt 0:00:27]} 38. Kd3 {[%emt 0:00:59]} Kc6 {[%emt 0:00:51]} 39. Re1 {[%emt 0:00:52]} Re8 {[%emt 0:01:52]} 40. Kc3 {[%emt 0:00:00]} Re7 {[%emt 0:00:00]} 41. Bd8 {[%emt 0:02:27]} Re8 {[%emt 0:03:00]} 42. Bf6 {[%emt 0:02:03]} Nc7 {[%emt 0:05:50]} 43. Rb1 {[%emt 0:02:35]} Ra8 {[%emt 0:02:09]} 44. Rb6+ {[%emt 0:01:31]} Kd7 {[%emt 0:00:07]} 45. Be5 {[%emt 0:00:06]} Ra7 {[%emt 0:07:11]} 46. Kb3 {[%emt 0:02:56]} Na8 {[%emt 0:04:52]} 47. Rd6+ {[%emt 0:02:25]} Ke7 {[%emt 0:00:13]} 48. Ka4 {[%emt 0:00:32]} Rb7 {[%emt 0:02:50]} 49. Ra6 {[%emt 0:00:49]} Nc7 {[%emt 0:01:45]} 50. Rc6 {[%emt 0:02:43]} Kd7 {[%emt 0:03:45]} 51. Rxc5 {[%emt 0:00:14]} Ra7 {[%emt 0:01:02]} 52. Rxc7+ {[%emt 0:00:26]} Rxc7 {[%emt 0:00:07]} 53. Bxc7 {[%emt 0:00:10]} Kxc7 {[%emt 0:00:01]} 54. Kb4 {[%emt 0:00:15]} Kc6 {[%emt 0:00:33]} 55. Kc3 {[%emt 0:00:08]} Kc5 {[%emt 0:00:17]} 56. Kd3 {[%emt 0:00:07]} Kc6 {[%emt 0:00:13]} 57. Kd4 {[%emt 0:00:06]} Kd6 {[%emt 0:00:12]} 58. c5+ {[%emt 0:00:05]} 1-0